{"text_format":"2","workbook":"xlsx","n_sheets":1,"sheets":["Sheet1"],"not_rendered":{"charts":0,"images":46,"macros":0,"external_links":0,"defined_names":0,"comments":0,"pivot_tables":0},"unopened":[],"bounds":{"document_bytes":16777216,"sheet_cells":100000,"run_cost":"one","rows_first":2000,"rows_last":500,"rows_between":2000,"halvings":0,"cell_chars":16384,"cell_head_chars":4096},"cells_cut":0,"cells_raw":0,"read":"whole","date_system":"1900"}

{"sheet":"Sheet1","index":0,"n_rows":51,"n_cols":8,"rows_kept":51,"cut":false,"hidden":false,"merged":[[1,0,1,7],[2,0,2,7],[0,0,0,7]]}
["ΠΡΟΪΟΝΤΑ ΕΚΠΟΙΗΣΗΣ"]
["Τα παρακάτω προϊόντα  είναι καινούρια και διατίθενται με μεγάλη έκπτωση, λόγω διαφόρων θεμάτων που καταγράφονται στις παρατηρήσεις"]
["Για την αγορά τους θα πρέπει να επικοινωνήσετε τηλεφωνικά στο 2394020204 ή να στείλετε email στο dadiras@data-media.gr"]
["Φωτογραφία","Κωδικός","Περιγραφή","Απόθεμα","Κανονική τιμή","ΕΚΠΤΩΣΗ %","Τιμή προσφοράς","Παρατηρήσεις"]
[null,"A520MH","BIOSTAR Μητρική A520MH, 2x DDR4, AM4, USB 3.2, HDMI, mATX, Ver. 6.0",4,59.23,20,{"$f":"E5*(100-F5)/100","v":47.383999999999993},"ΕΠΙΣΤΡΟΦΗ ΑΠΌ ΠΡΟΜΗΘΕΥΤΗ ΜΕΤΑ ΑΠΌ ΕΠΙΣΚΕΥΗ ΧΩΡΙΣ ΣΥΣΚΕΥΑΣΙΑ"]
[null,"ANM-0007","Δοχείο συλλογής περιττωμάτων για κατοικίδια ANM-0007 με σακούλες, γκρι",1,3,80,{"$f":"E6*(100-F6)/100","v":0.6},"ΧΤΥΠΗΜΕΝΗ ΣΥΣΚΕΥΑΣΙΑ"]
[null,"AUL-S603","AULA gaming headset Mountain S603, RGB, 2x 3.5mm, 50mm, μαύρο",1,6.7,50,3.35,"ΧΤΥΠΗΜΕΝΗ ΣΥΣΚΕΥΑΣΙΑ"]
[null,"B450MH","BIOSTAR Μητρική B450MH, 2x DDR4, AM4, USB 3.1, HDMI, mATX, Ver. 6.0",1,59.23,20,47.383999999999993,"ΕΠΙΣΤΡΟΦΗ ΑΠΌ ΠΡΟΜΗΘΕΥΤΗ ΜΕΤΑ ΑΠΌ ΕΠΙΣΚΕΥΗ ΧΩΡΙΣ ΣΥΣΚΕΥΑΣΙΑ"]
[null,"B550MH","BIOSTAR Μητρική B550MH, 2x DDR4, AM4, USB 3.2, uATX, HDMI, Ver. 6.0",2,77.91,20,62.327999999999996,"ΕΠΙΣΤΡΟΦΗ ΑΠΌ ΠΡΟΜΗΘΕΥΤΗ ΜΕΤΑ ΑΠΌ ΕΠΙΣΚΕΥΗ ΧΩΡΙΣ ΣΥΣΚΕΥΑΣΙΑ"]
[null,"B560MX-E-PRO","BIOSTAR μητρική B560MX-E PRO, 4x DDR4, s1200, USB 3.2, mATX, Ver. 6.0",1,94,20,75.2,"ΕΠΙΣΤΡΟΦΗ ΑΠΌ ΠΡΟΜΗΘΕΥΤΗ ΜΕΤΑ ΑΠΌ ΕΠΙΣΚΕΥΗ ΧΩΡΙΣ ΣΥΣΚΕΥΑΣΙΑ"]
[null,"BO-28","BΟ Χαρτοταινία Θερμ 28x40mm 15m x60",1,7.9790000000000001,30,5.5853000000000002,"ΛΕΙΠΕΙ 1ΤΜΧ"]
[null,"BO-33","BURN OUT Χαρτοταινία Θερμική 28 x 46 x 12mm, 25m, 55γρ, 60τμχ",1,12.18,40,{"$f":"E12*(100-F12)/100","v":7.3079999999999998},"ΛΕΙΠΟΥΝ 7ΤΜΧ, BULK"]
[null,"BOX26","DVD Θήκη για 2 δίσκους 14 χιλιοστών, Clear - 50ΤΕΜ",1,15.795999999999999,70,{"$f":"E13*(100-F13)/100","v":4.7388000000000003},"ΛΕΙΠΟΥΝ 5ΤΜΧ"]
[null,"BRN-0014","BRUNO Μίξερ χειρός, 6 ταχύτητες, 20cm αναδευτήρες & ζυμωτήρες, 300W",1,16.047999999999998,40,{"$f":"E14*(100-F14)/100","v":9.6287999999999982},"ΛΕΙΠΕΙ ΕΝΑΣ ΑΝΑΔΕΥΤΗΡΑΣ"]
[null,"BX80701G5920","INTEL CPU Celeron G5920 Dual Core, 3.50GHz, 2MB Cache, LGA1200",2,48.18,37.729999999999997,{"$f":"E15*(100-F15)/100","v":30.001685999999999},"ΑΝΟΙΧΤΗ ΣΥΣΚΕΥΑΣΙΑ"]
[null,"BX80715G6900","INTEL CPU Celeron G6900, Dual Core, 3.40GHz, 4MB Cache, LGA1700",1,51.24,31.69,35.002043999999998,"ΑΝΟΙΧΤΗ ΣΥΣΚΕΥΑΣΙΑ"]
[null,"C6515-4","DIBEISI ηχείο C6515-4, 6.5\", 125W, 4 Ohm, 90dB",1,9.9600000000000009,50,4.9800000000000004,"ΧΤΥΠΗΜΕΝΗ ΣΥΣΚΕΥΑΣΙΑ"]
[null,"COREPLUS-ARGB-PWM-4P","AEROCOOL ψύκτρα COREPLUS-ARGB-PWM-4P, 1800rpm, 25.4dBA, 51.3CFM, ARGB",30,11.02,60,{"$f":"E18*(100-F18)/100","v":4.4079999999999995},"UNIVERSAL ΣΥΣΚΕΥΑΣΙΑ (ΧΑΡΤΟΚΙΒΩΤΙΟ)"]
[null,"CT-MP03-AB","CABLETIME πυκνωτικό μικρόφωνο MP03-AB, με αντιανέμιο & τρίποδα, USB",1,26.05,60,10.42,"ΛΕΙΠΕΙ Ο ΑΝΤΑΠΤΟΡΑΣ ΣΤΗΡΙΞΗΣ. ΕΊΝΑΙ ΛΕΙΤΟΥΡΓΙΚΟ, ΧΡΕΙΑΖΕΤΑΙ AFTER MARKET ΒΑΣΗ"]
[null,"DRUMP-CF219A-12K","Συμβατό Drum για HP CF219A, 12K, μαύρο",3,8.4499999999999993,50,4.2249999999999996,"ΧΤΥΠΗΜΕΝΗ ΣΥΣΚΕΥΑΣΙΑ"]
[null,"DVD0256","MAXELL DVD-R 16x 120min 4,7Gb 50 Spindle",1,10.4,30,7.28,"ΧΤΥΠΗΜΕΝΗ ΣΥΣΚΕΥΑΣΙΑ"]
[null,"FISH-0046","DAIWA πετονιά ψαρέματος FISH-0046, 14.5kg, 0.373mm, 500m, διάφανη",1,5.47,70,1.641,"ΧΤΥΠΗΜΕΝΗ ΣΥΣΚΕΥΑΣΙΑ"]
[null,"H310MHP","BIOSTAR Μητρική H310MHP, 2x DDR4, s1151, USB 3.1, HDMI, mATX, Ver. 7.0",1,57.3,20,45.84,"ΕΠΙΣΤΡΟΦΗ ΑΠΌ ΠΡΟΜΗΘΕΥΤΗ ΜΕΤΑ ΑΠΌ ΕΠΙΣΚΕΥΗ ΧΩΡΙΣ ΣΥΣΚΕΥΑΣΙΑ"]
[null,"H410MH","BIOSTAR Μητρική Intel H410",1,53.85,50,26.925000000000001,"ΕΠΙΣΤΡΟΦΗ ΑΠΌ ΠΡΟΜΗΘΕΥΤΗ ΜΕΤΑ ΑΠΌ ΕΠΙΣΚΕΥΗ ΧΩΡΙΣ ΣΥΣΚΕΥΑΣΙΑ"]
[null,"H410MHG","BIOSTAR Μητρική H410MHG, 2x DDR4, s1200, USB 3.2, uATX, Ver. 6.0",1,77.91,20,62.327999999999996,"ΕΠΙΣΤΡΟΦΗ ΑΠΌ ΠΡΟΜΗΘΕΥΤΗ ΜΕΤΑ ΑΠΌ ΕΠΙΣΚΕΥΗ ΧΩΡΙΣ ΣΥΣΚΕΥΑΣΙΑ"]
[null,"H610MHP","BIOSTAR μητρική H610MHP, 2x DDR4, s1700, USB 3.2, uATX, GbE, Ver. 6.1",1,79.19,20,63.351999999999997,"ΕΠΙΣΤΡΟΦΗ ΑΠΌ ΠΡΟΜΗΘΕΥΤΗ ΜΕΤΑ ΑΠΌ ΕΠΙΣΚΕΥΗ ΧΩΡΙΣ ΣΥΣΚΕΥΑΣΙΑ"]
[null,"H61MHV2","BIOSTAR Μητρική H61MHV2, 2x DDR3, s1155, 8x USB 2.0 HDMI, mATX, Ver. 7.0",1,50.22,20,40.176000000000002,"ΕΠΙΣΤΡΟΦΗ ΑΠΌ ΠΡΟΜΗΘΕΥΤΗ ΜΕΤΑ ΑΠΌ ΕΠΙΣΚΕΥΗ ΧΩΡΙΣ ΣΥΣΚΕΥΑΣΙΑ"]
[null,"HUH-0107","Κρεμάστρα ντουλάπας HUH-0107, 8 θέσεων, αναδιπλούμενη, λευκή",1,2.68,70,0.80400000000000005,"ΣΠΑΣΜΕΝΗ Η ΜΙΑ ΑΠΌ ΤΙΣ 8 ΚΡΕΜΑΣΤΡΕΣ"]
[null,"INK-PG560XL","Συμβατό Inkjet για Canon PG-560XL, 16ml, μαύρο",1,11.9,30,8.33,"ΧΤΥΠΗΜΕΝΗ ΣΥΣΚΕΥΑΣΙΑ"]
[null,"IPK-020","IPAKY Θήκη Effort TPU & tempered glass Samsung Galaxy A6 Plus 2018",1,1.919,90,{"$f":"E30*(100-F30)/100","v":0.19190000000000002},"ΧΩΡΙΣ TEMPERED GLASS"]
[null,"LDT13-C024","BRATECK Βάση γραφείου LDT13-C024 για 2 οθόνες 13\"-27\", 2-6.5kg",1,40.94,50,20.47,"ΧΤΥΠΗΜΕΝΗ ΣΥΣΚΕΥΑΣΙΑ"]
[null,"NC-00581XXLM","Συμβατό Inkjet Canon 581XXL Magenta",1,4.6459999999999999,50,{"$f":"E32*(100-F32)/100","v":2.323},"ΧΤΥΠΗΜΕΝΗ ΣΥΣΚΕΥΑΣΙΑ"]
[null,"PB23-022-BL","Ομπρέλα Kazbrella αντίστροφης δίπλωσης, λαβή σχήματος C, με θήκη, μπλε",1,5.46,90,0.54600000000000004,"ΠΡΟΒΛΗΜΑΤΙΚΟ ΚΛΕΙΔΩΜΑ"]
[null,"PC-1362-SQR","HP PC Z200 Tower, i7-860, 4GB, 500GB HDD, DVD, Nvidia NVS 300, REF SQR",1,128.72,61.16,{"$f":"E34*(100-F34)/100","v":49.994848000000005},"ΛΕΙΤΟΥΡΓΙΚΟ. ΑΝΑ ΔΙΑΣΤΗΜΑΤΑ ΕΜΦΑΝΙΖΕΙ PRESS F1 TO CONTINUE ΣΤΟ BOOT"]
[null,"PT-787","POWERTECH PC Case PT-787, USB 3.0, με PSU 500W",1,39.07,70,{"$f":"E35*(100-F35)/100","v":11.720999999999998},"ΛΕΙΤΟΥΡΓΙΚΟ. ΣΤΡΑΒΩΜΑ ΣΤΟ ΠΙΣΩ ΚΑΙ ΕΠΑΝΩ ΜΕΡΟΣ"]
[null,"PT-848","POWERTECH Gaming case PT-848, tempered glass, 80mm fan, PSU 500W PT-864",1,66.403999999999996,60,{"$f":"E36*(100-F36)/100","v":26.561599999999999},"ΛΕΙΤΟΥΡΓΙΚΟ. ΣΠΑΣΜΕΝΟ ΠΟΔΑΡΑΚΙ ΚΑΙ ΣΤΡΑΒΩΜΑ ΣΤΟ ΣΑΣΙ (ΣΤΗΝ ΙΔΙΑ ΠΕΡΙΟΧΗ)"]
[null,"PT-998","POWERTECH Bluetooth earphone Klipp 2 PT-998, multipoint, BT V5.1, γκρι",1,21.693999999999999,30,15.185799999999999,"ΑΝΟΙΧΤΗ ΣΥΣΚΕΥΑΣΙΑ"]
[null,"RP-H-0932XL","Συμβατό Inkjet για HP, 932 XL, 32ml, Black",1,4.17,50,2.085,"ΧΤΥΠΗΜΕΝΗ ΣΥΣΚΕΥΑΣΙΑ"]
[null,"RP-H-0950XL-BK","Συμβατό Inkjet για HP, 950 XL, 73ml, Black",1,3.55,60,1.42,"ΧΤΥΠΗΜΕΝΗ ΣΥΣΚΕΥΑΣΙΑ"]
[null,"S12-22R-B","BRATECK ηλεκτρικό γραφείο S12-22R-B, ρυθμιζόμενο ύψος, 120x60cm, καφέ",1,109.61,40,65.766000000000005,"ΜΙΚΡΑ ΧΤΥΠΗΜΑΤΑ ΣΤΙΣ 2 ΔΕΞΙΕΣ ΠΛΕΥΡΕΣ"]
[null,"TMV-0001","Toothbrush holder silicone with windows Ligth Gray",1,4.95,79,{"$f":"E41*(100-F41)/100","v":1.0395000000000001},"ΧΤΥΠΗΜΕΝΗ ΣΥΣΚΕΥΑΣΙΑ"]
[null,"TMV-0036","θήκη για χάπια TMV-0036 με δυνατότητα αποθήκευσης νερού, 600ml, μπλε",1,2.42,50,1.21,"ΧΤΥΠΗΜΕΝΗ ΣΥΣΚΕΥΑΣΙΑ"]
[null,"TON-543-213-323","Συμβατό Toner για HP, CB543A CRG-716M, Magenta, 1.4K",8,8.82,30,6.1739999999999995,"ΧΤΥΠΗΜΕΝΗ ΣΥΣΚΕΥΑΣΙΑ"]
[null,"U59","BEELINK mini PC U59, INTEL CPU N5095, 8GB, 256GB SSD, Windows 10 Pro",1,241.79,30,169.25299999999999,"ΧΩΡΙΣ ΑΡΧΙΚΗ ΣΥΣΚΕΥΑΣΙΑ, ΕΚΘΕΣΙΑΚΟ"]
[null,"X96MAX","TV Box X96 MAX, 4K, S905XII, 4GB DDR4, 32GB eMMC, Android 8.1",2,62.36,40,37.415999999999997,"ΧΩΡΙΣ ΣΥΣΚΕΥΑΣΙΑ (BULK)"]
[null,"XB13006-BK","ARCTIC HUNTER τσάντα Crossbody XB13006-BK, μαύρη",1,11.21,50,5.6050000000000004,"ΔΥΟ ΜΙΚΡΑ ΣΗΜΑΔΙΑ ΕΜΠΡΟΣ"]
[null,"Y00020-BK","ARCTIC HUNTER τσάντα μέσης Y00020, μαύρη",1,16.934999999999999,30,{"$f":"E47*(100-F47)/100","v":11.854499999999998},"ΛΕΙΠΟΥΝ ΓΡΑΜΜΑΤΑ ΑΠΌ ΤΟ BRAND NAME"]
[null,"WLTC04IR60","WELLER soldering tip WLTC04IR60, conical, 0.4mm, 3τμχ",1,9.8000000000000007,50,{"$f":"E48*(100-F48)/100","v":4.9000000000000004},"ΑΝΟΙΧΤΗ ΣΥΣΚΕΥΑΣΙΑ"]
[null,"12601","DELOCK mousepad για laptop με στήριγμα καρπού 12601, 320x420mm, μαύρο",1,13.31,40,7.9860000000000007,"ΧΤΥΠΗΜΕΝΗ ΣΥΣΚΕΥΑΣΙΑ"]
[null,"41266","GOOBAY αντάπτορας ρεύματος 41266, schuko, 16A, IP44, μαύρος",2,4.05,50,2.0249999999999999,"ΧΤΥΠΗΜΕΝΗ ΣΥΣΚΕΥΑΣΙΑ"]
[null,"53439","GOOBAY φορτιστής αυτοκινήτου για laptop 53439, 12V-24V, 24W-2A, 6 tips",1,11.88,50,5.94,"ΑΝΟΙΧΤΗ ΣΥΣΚΕΥΑΣΙΑ"]